bitfinex/quotes_SOLUSD_20250307
["timestamp","ask_amount","ask_price","bid_price","bid_amount"]
[1741367323797,81.5,142.14,142.11,43.18265196]
[1741367324376,81.5,142.14,142.1,43.18265196]
[1741367324570,81.5,142.14,142.1,50.21945196]
[1741367324783,90.35,142.16,142.12,43.18265196]
[1741367324979,81.53,142.16,142.13,43.18265196]
[1741367325183,81.53,142.16,142.1,24.63]
[1741367325378,0.03,142.16,142.1,24.63]
[1741367325601,0.03,142.16,142.11,18.933972]
[1741367325798,0.03,142.16,142.15,43.18265196]
[1741367326886,0.03,142.16,142.11,7.0368]
[1741367327073,0.03,142.16,142.14,43.18265196]
[1741367327274,0.03,142.16,142.13,43.18265196]
[1741367327484,0.03,142.16,142.11,43.18265196]
[1741367327692,124.71265196,142.16,142.1,43.18265196]
[1741367328002,124.68265196,142.15,142.09,43.18265196]
[1741367328179,8.82,142.14,142.09,43.18265196]
[1741367328582,15.8555,142.14,142.1,43.18265196]
[1741367328786,8.82,142.14,142.1,43.18265196]
[1741367329008,0.03,142.16,142.13,43.18265196]
[1741367329391,0.03,142.16,142.14,43.18265196]
[1741367329901,0.03,142.16,142.12,43.18265196]
[1741367330091,50.24695196,142.16,142.1,43.18265196]
[1741367330403,43.18265196,142.15,142.08,43.18265196]
[1741367331104,43.18265196,142.12,142.06,43.18265196]
[1741367331290,43.18265196,142.11,142.05,43.18265196]
[1741367331484,43.18265196,142.1,142.03,43.18265196]
[1741367331679,90.32,142.12,142.02,26.252]
[1741367331912,133.50265196,142.12,142.02,26.252]
[1741367332215,43.18265196,142.09,142.01,7.0417]
[1741367332415,43.18265196,142.09,142.02,43.18265196]
[1741367332619,81.78432314,142.08,141.99,152.36]
[1741367332911,43.18265196,142.03,141.97,0.033]
[1741367333216,8.82,142.03,141.99,43.18265196]
[1741367333424,131.72155196,142.07,142.01,43.18265196]
[1741367333588,81.5,142.07,142.03,43.18265196]
[1741367333786,8.8,142.08,142.03,43.18265196]
[1741367334010,8.8,142.08,142.05,43.18265196]
[1741367334182,81.5,142.1,142.07,43.18265196]
[1741367334384,8.82,142.13,142.09,43.18265196]
[1741367334614,8.82,142.13,142.1,43.18265196]
[1741367334810,8.82,142.13,142.09,43.18265196]
[1741367334989,8.82,142.13,142.1,43.18265196]
[1741367335191,8.82,142.13,142.09,43.18265196]
[1741367335393,8.82,142.13,142.05,24.6391]
[1741367335591,0.03,142.16,142.05,163.39450843]
[1741367335817,0.03,142.16,142.12,43.18265196]
[1741367336189,0.03,142.16,142.1,43.18265196]
[1741367336404,0.03,142.16,142.06,18.933972]
[1741367336626,81.53,142.16,142.12,43.18265196]
[1741367337207,81.53,142.16,142.12,50.21875196]
[1741367337601,88.5643,142.16,142.09,7.0377]
[1741367337920,81.5,142.15,142.09,43.18265196]
[1741367338110,81.5,142.15,142.1,43.18265196]
[1741367338526,81.5,142.15,142.11,43.18265196]
[1741367339094,81.5,142.15,142.1,43.18265196]
[1741367339290,81.5,142.15,142.12,43.18265196]
[1741367339593,0.03,142.16,142.13,43.18265196]
[1741367339801,0.03,142.16,142.14,43.18265196]
[1741367339995,0.03,142.16,142.1,61.83230082]
[1741367339996,0.03,142.16,142.15,43.18265196]
[1741367341207,0.03,142.16,142.15,50.21745196]
[1741367341994,0.03,142.16,142.08,7.0382]
[1741367342210,81.5,142.15,142.1,43.18265196]
[1741367342419,124.68265196,142.15,142.09,43.18265196]
[1741367342598,124.68265196,142.15,142.08,43.18265196]
[1741367342599,81.5,142.14,142.08,43.18265196]
[1741367342799,81.5,142.14,142.09,43.18265196]
[1741367342998,81.5,142.14,142.11,43.18265196]
[1741367343214,6.2022,142.16,142.11,43.18265196]
[1741367343409,43.18265196,142.15,142.08,43.18265196]
[1741367343623,43.18265196,142.15,142.06,137.7]
[1741367343624,81.5,142.14,142.09,43.18265196]
[1741367345429,90.3,142.13,142.1,0.033]
[1741367345639,133.48265196,142.13,142.1,0.033]
[1741367345932,90.3,142.13,142.1,0.033]
[1741367346298,133.48265196,142.13,142.1,0.033]
[1741367346501,43.18265196,142.11,142.1,0.033]
[1741367346809,43.4669751,142.11,142.02,152.38]
[1741367347006,43.18265196,142.08,142.02,195.56265196]
[1741367347211,7.0392,142.06,142.01,43.18265196]
[1741367347405,7.0392,142.06,142.0,43.18265196]
[1741367347613,15.8388,142.07,142.02,43.18265196]
[1741367347819,8.8,142.07,142.02,43.18265196]
[1741367348021,8.8,142.07,142.03,43.18265196]
[1741367348228,15.8388,142.07,142.02,43.18265196]
[1741367348423,8.8,142.07,141.98,44.35692404]
[1741367348729,8.8,142.07,142.03,43.18265196]
[1741367349413,59.01905196,142.12,142.06,43.18265196]
[1741367349803,59.01905196,142.12,142.0,156.36109445]
[1741367349804,33.4271,142.12,142.03,43.18265196]
[1741367350010,43.18265196,142.11,142.05,43.18265196]
[1741367350228,59.01905196,142.12,142.05,43.18265196]
[1741367350406,43.18265196,142.11,142.04,43.18265196]
[1741367350619,43.18265196,142.07,141.99,7.0427]
[1741367350803,124.68265196,142.06,142.0,43.18265196]
[1741367351207,81.5,142.09,142.05,43.18265196]
[1741367351417,81.5,142.14,142.06,24.6373]
[1741367351629,81.5,142.14,142.1,43.18265196]
[1741367351828,88.5353,142.14,142.09,43.18265196]
[1741367352000,81.5,142.14,142.1,43.18265196]
[1741367352200,81.5,142.14,142.04,156.34964886]
[1741367352201,43.18265196,142.12,142.04,7.0402]
[1741367352412,81.5,142.11,142.04,7.0402]
[1741367352606,81.5,142.11,142.06,43.18265196]
[1741367352823,81.5,142.11,142.07,43.18265196]
[1741367353329,81.5,142.11,142.06,43.18265196]
[1741367353531,81.5,142.11,142.07,43.18265196]
[1741367353925,81.5,142.13,142.06,7.0392]
[1741367354136,81.5,142.12,142.03,7.0406]
[1741367354328,81.5,142.11,142.05,43.18265196]
[1741367354532,81.5,142.11,142.06,43.18265196]
[1741367354730,81.5,142.1,142.06,43.18265196]
[1741367355307,124.68265196,142.1,142.01,7.0415]
[1741367355525,43.18265196,142.08,142.01,43.18265196]
[1741367355727,43.18265196,142.07,142.01,43.18265196]
[1741367356016,81.5,142.06,142.0,43.18265196]
[1741367356231,81.5,142.06,141.99,7.0424]
[1741367356232,124.68265196,142.05,141.99,43.18265196]
[1741367356430,81.5,142.04,141.99,43.18265196]
[1741367356733,81.5,142.03,141.99,43.18265196]
[1741367357816,81.5,142.02,141.97,0.033]
[1741367358027,81.5,142.02,141.97,7.0765]
[1741367358333,81.5,142.02,142.01,43.18265196]
[1741367358721,81.5,142.02,141.97,24.6858]
[1741367358925,81.5,142.05,142.01,43.18265196]
[1741367359324,81.5,142.05,142.02,43.18265196]
[1741367359832,81.5,142.05,142.01,43.18265196]
[1741367360024,81.5,142.04,142.0,43.18265196]
[1741367360334,81.5,142.04,141.97,7.0765]
[1741367360520,81.5,142.03,141.99,43.18265196]
[1741367360925,81.5,142.03,141.97,7.0765]
[1741367360926,81.5,142.03,141.97,43.21565196]
[1741367361117,124.68265196,142.03,141.97,43.21565196]
[1741367361335,81.5,142.03,141.98,43.18265196]
[1741367361639,81.5,142.03,141.99,43.18265196]
[1741367361940,88.5412,142.03,141.97,43.21565196]
[1741367362315,81.5,142.02,141.97,43.21565196]
[1741367363041,81.5,142.02,141.97,0.033]
[1741367363216,43.18265196,141.99,141.97,0.033]
[1741367363538,81.5,141.98,141.97,0.033]
[1741367364440,7.0432,141.98,141.97,0.033]
[1741367367139,8.8,141.99,141.97,0.033]
[1741367367840,14.31686792,142.03,141.98,43.18265196]
[1741367368043,8.8,142.03,141.98,43.18265196]
[1741367368924,7.0404,142.04,141.98,7.0427]
[1741367369132,15.8404,142.04,141.99,43.18265196]
[1741367369356,59.02305196,142.04,141.98,43.18265196]
[1741367369552,43.18265196,142.01,141.97,0.033]
[1741367369727,43.18265196,142.02,141.97,0.033]
[1741367369926,8.8,142.02,141.98,43.18265196]
[1741367370246,8.8,142.02,141.99,43.18265196]
[1741367370450,7.0404,142.04,142.01,43.18265196]
[1741367370648,15.8398,142.05,142.01,43.18265196]
[1741367370826,15.8398,142.05,142.0,43.18265196]
[1741367371026,15.8398,142.05,141.99,43.18265196]
[1741367371255,81.5,142.02,142.0,43.18265196]
[1741367371447,15.8398,142.05,141.97,7.0767]
[1741367371448,81.5,142.04,142.01,43.18265196]
[1741367372330,43.18265196,142.02,141.97,0.033]
[1741367372543,28.97853841,141.99,141.97,0.033]
[1741367372744,81.5,141.98,141.97,0.033]
[1741367373665,28.97853841,142.01,141.97,0.033]
[1741367373666,81.5,142.01,141.97,29.01153841]
[1741367373823,81.5,142.01,141.98,28.97853841]
[1741367374957,88.5418,142.01,141.97,0.033]
[1741367375339,117.52033841,142.01,141.97,0.033]
[1741367375629,28.97853841,141.99,141.97,0.033]
[1741367375831,110.47853841,142.0,141.97,0.033]
[1741367376135,81.5,142.0,141.97,0.033]
[1741367376861,110.47853841,142.0,141.97,0.033]
[1741367377064,28.97853841,141.99,141.97,0.033]
[1741367377268,7.0432,141.98,141.97,0.033]
[1741367378026,88.5423,142.0,141.97,0.033]
[1741367378233,28.97853841,141.99,141.97,0.033]
[1741367378860,81.5,141.98,141.97,0.033]
[1741367379192,88.5432,141.98,141.97,0.033]
[1741367380430,81.5,141.98,141.97,0.033]
[1741367381433,81.5,142.0,141.97,29.01153841]
[1741367381770,81.5,142.02,141.99,28.97853841]
[1741367381933,81.5,142.02,142.0,28.97853841]
[1741367382134,81.5,142.02,141.99,28.97853841]
[1741367382762,81.5,142.04,142.0,28.97853841]
[1741367383149,88.5404,142.04,141.99,28.97853841]
[1741367383473,81.5,142.04,142.0,7.0422]
[1741367384078,81.5,142.04,141.99,36.02103841]
[1741367385781,81.5,142.07,142.03,28.97853841]
[1741367385953,81.5,142.06,142.03,28.97853841]
[1741367386275,81.5,142.06,141.99,26.303]
[1741367386276,81.5,142.09,142.04,28.97853841]
[1741367386446,81.5,142.09,142.05,28.97853841]
[1741367386765,0.03,142.1,142.08,28.97853841]
[1741367386939,0.03,142.1,142.09,28.97853841]
[1741367387143,0.03,142.1,142.08,28.97853841]
[1741367387659,0.03,142.1,142.08,36.01663841]
[1741367388672,0.03,142.1,142.08,7.0381]
[1741367389074,0.03,142.1,142.07,36.01713841]
[1741367389238,0.03,142.1,142.08,28.97853841]
[1741367389443,0.03,142.1,142.09,28.97853841]
[1741367389677,0.03,142.1,142.09,36.01623841]
[1741367390183,0.03,142.1,142.09,28.97853841]
[1741367390476,0.03,142.1,142.0,6.1056]
[1741367390652,110.47853841,142.09,142.03,28.97853841]
[1741367390853,81.5,142.08,142.03,28.97853841]
[1741367391072,81.5,142.08,142.02,28.97853841]
[1741367391475,110.47853841,142.08,142.02,28.97853841]
[1741367391850,88.5384,142.08,142.02,36.01943841]
[1741367392166,81.5,142.08,142.04,28.97853841]
[1741367392679,110.47853841,142.07,142.0,7.0422]
[1741367392845,110.47853841,142.06,142.0,36.05373841]
[1741367393052,81.5,142.06,142.02,28.97853841]
[1741367393563,81.5,142.06,142.03,28.97853841]
[1741367394077,81.5,142.06,142.02,36.01933841]
[1741367394282,81.5,142.06,142.03,28.97853841]
[1741367394577,81.5,142.08,142.04,28.97853841]
[1741367395274,81.5,142.08,142.03,28.97853841]
[1741367395878,88.5383,142.08,142.03,28.97853841]
[1741367396044,88.5383,142.08,142.03,36.01913841]
[1741367396378,81.5,142.08,142.07,28.97853841]
[1741367396584,0.03,142.1,142.07,28.97853841]
[1741367396763,0.03,142.1,142.06,28.97853841]
[1741367397352,0.03,142.1,142.08,28.97853841]
[1741367397684,0.03,142.1,142.06,28.97853841]
[1741367397889,36.04593841,142.1,142.03,7.0406]
[1741367398176,110.47853841,142.09,142.02,36.01973841]
[1741367398383,81.5,142.09,142.05,28.97853841]
[1741367398949,81.5,142.09,142.02,28.97853841]
[1741367399192,28.97853841,142.07,142.01,7.0416]
[1741367399379,81.5,142.06,142.01,36.02013841]
[1741367399673,81.5,142.06,142.01,28.97853841]
[1741367399878,110.47853841,142.05,142.0,0.033]
[1741367400183,81.5,142.04,142.02,28.97853841]
[1741367400368,81.5,142.07,142.03,28.97853841]
[1741367400547,81.5,142.07,142.02,28.97853841]
[1741367400875,81.5,142.07,142.05,28.97853841]
[1741367401071,81.5,142.07,142.0,0.033]
[1741367401275,81.5,142.06,142.01,28.97853841]
[1741367401576,28.97853841,142.04,142.0,0.033]
[1741367401774,81.5,142.03,142.0,0.033]
[1741367402278,81.5,142.03,142.0,29.01153841]
[1741367402451,90.28,142.06,142.02,28.97853841]
[1741367402865,90.28,142.06,142.01,28.97853841]
[1741367403064,126.29783841,142.06,142.0,29.01153841]
[1741367403959,90.28,142.06,142.02,28.97853841]
[1741367404160,81.5,142.09,142.05,28.97853841]
[1741367404364,0.03,142.1,142.05,28.97853841]
[1741367404365,0.0001,142.1,142.08,57.95707682]
[1741367404677,0.03,142.16,142.09,60.24139996]
[1741367404869,0.03,142.16,142.15,28.97853841]
[1741367405982,0.03,142.16,142.09,1.5796]
[1741367406283,0.03,142.16,142.14,28.97853841]
[1741367406486,0.03,142.16,142.15,28.97853841]
[1741367406779,10.83247765,142.17,142.15,28.97853841]
[1741367407080,10.83247765,142.17,142.11,1.05501774]
[1741367407272,10.83247765,142.17,142.16,28.97853841]
[1741367407467,28.97853841,142.22,142.16,28.97853841]
[1741367407674,28.97853841,142.2,142.13,28.97853841]
[1741367407975,81.5,142.19,142.14,28.97853841]
[1741367408278,81.5,142.19,142.13,17.5893]
[1741367408487,81.5,142.19,142.17,28.97853841]
[1741367408785,15.8126,142.2,142.14,28.97853841]
[1741367408995,28.97853841,142.18,142.12,28.97853841]
[1741367409223,28.97853841,142.18,142.11,28.97853841]
[1741367409498,81.5,142.17,142.11,28.97853841]
[1741367409997,28.97853841,142.15,142.09,28.97853841]
[1741367410188,28.97853841,142.13,142.04,1.53]
[1741367410362,110.47853841,142.12,142.05,36.01783841]
[1741367410571,81.5,142.11,142.09,28.97853841]
[1741367410803,8.78,142.14,142.09,28.97853841]
[1741367411089,90.28,142.14,142.1,28.97853841]
[1741367411463,90.28,142.14,142.05,24.6387]
[1741367411464,28.97853841,142.11,142.05,28.97853841]
[1741367411665,81.5,142.1,142.07,28.97853841]
[1741367411889,81.5,142.13,142.04,24.6407]
[1741367412092,81.5,142.17,142.12,36.01483841]
[1741367412386,81.5,142.17,142.15,28.97853841]
[1741367412774,81.5,142.17,142.16,28.97853841]
[1741367412977,81.5,142.21,142.16,28.97853841]
[1741367413181,81.5,142.2,142.16,28.97853841]
[1741367413382,81.5,142.2,142.1,152.36]
[1741367413383,29.26286155,142.18,142.1,152.36]
[1741367413581,28.97853841,142.16,142.09,28.97853841]
[1741367413790,90.28,142.17,142.07,28.97853841]
[1741367413791,28.97853841,142.14,142.07,28.97853841]
[1741367413991,110.47853841,142.13,142.06,36.01773841]
[1741367414293,81.5,142.12,142.07,28.97853841]
[1741367414493,81.5,142.11,142.07,28.97853841]
[1741367414694,81.5,142.1,142.05,28.97853841]
[1741367414870,110.47853841,142.1,142.04,28.97853841]
[1741367415070,81.5,142.09,142.06,28.97853841]
[1741367415500,81.5,142.09,142.04,28.97853841]
[1741367415795,81.5,142.08,142.0,0.033]
[1741367415974,28.97853841,142.04,142.0,0.033]
[1741367416170,81.5,142.03,142.0,0.033]
[1741367416385,81.5,142.03,142.0,29.01153841]
[1741367417091,47.36950739,142.12,142.02,28.97853841]
[1741367417092,81.5,142.06,142.02,28.97853841]
[1741367417471,81.5,142.06,142.0,0.033]
[1741367417472,81.5,142.06,142.01,28.97853841]
[1741367417884,81.5,142.06,142.03,28.97853841]
[1741367418089,81.5,142.1,142.04,28.97853841]
[1741367418276,47.62818727,142.08,142.0,0.033]
[1741367418481,81.5,142.07,142.0,29.01153841]
[1741367418695,110.47853841,142.07,142.0,29.01153841]
[1741367419208,81.5,142.07,142.03,28.97853841]
[1741367419495,28.97853841,142.05,142.0,0.033]
[1741367419700,110.47853841,142.04,142.0,0.033]
[1741367419893,116.54453841,142.03,142.0,0.033]
[1741367420197,36.30456155,142.01,142.0,0.033]
[1741367420693,36.30456155,142.01,141.97,0.033]
[1741367420694,18.933972,142.0,141.97,0.033]
[1741367420879,28.97853841,141.98,141.97,0.033]
[1741367421078,47.91251041,141.98,141.97,0.033]
[1741367421273,18.933972,141.98,141.97,0.033]
[1741367421497,90.28,141.99,141.97,0.033]
[1741367421705,81.5,141.99,141.97,0.033]
[1741367421876,81.5,141.99,141.98,28.97853841]
[1741367422076,81.5,142.03,141.98,28.97853841]
[1741367422393,5.67908403,142.12,142.02,28.97853841]
[1741367422394,81.5,142.11,142.02,28.97853841]
[1741367422577,6.238,142.12,142.09,28.97853841]
[1741367422774,81.5,142.14,142.11,28.97853841]
[1741367423014,81.5,142.14,142.1,28.97853841]
[1741367423182,81.5,142.14,142.11,28.97853841]
[1741367423376,81.5,142.14,142.1,28.97853841]
[1741367423776,19.61247765,142.16,142.13,28.97853841]
[1741367424002,10.83247765,142.16,142.13,28.97853841]
[1741367424247,10.83247765,142.16,142.13,36.01393841]
[1741367424508,10.83247765,142.16,142.13,28.97853841]
[1741367424714,10.83247765,142.16,142.1,312.0]
[1741367424910,10.83247765,142.16,142.12,43.34249512]
[1741367425222,10.83247765,142.16,142.07,7.0387]
[1741367425223,10.83247765,142.16,142.13,43.34249512]
[1741367425510,81.5,142.19,142.15,43.34249512]
[1741367425712,131.87539512,142.19,142.08,152.68432314]
[1741367425884,131.87539512,142.19,142.12,43.34249512]
[1741367426085,124.84249512,142.19,142.13,43.34249512]
[1741367426279,81.5,142.19,142.1,43.34249512]
[1741367426579,81.5,142.19,142.14,43.34249512]
[1741367426804,0.03,142.21,142.16,43.34249512]
[1741367427080,0.03,142.21,142.11,7.0368]
[1741367427081,0.03,142.21,142.19,43.34249512]
[1741367427300,0.03,142.21,142.16,43.34249512]
[1741367427476,43.34249512,142.19,142.13,43.34249512]
[1741367427675,18.933972,142.2,142.09,7.0377]
[1741367427992,8.78,142.19,142.09,7.0377]
[1741367428199,43.34249512,142.17,142.11,43.34249512]
[1741367428399,50.37629512,142.17,142.1,43.34249512]
[1741367428702,43.34249512,142.17,142.1,43.34249512]
[1741367428888,43.34249512,142.17,142.08,159.4378]
[1741367428889,43.34249512,142.18,142.11,43.34249512]
[1741367429084,43.34249512,142.18,142.05,7.0397]
[1741367429085,81.5,142.17,142.05,7.0397]
[1741367429386,81.5,142.17,142.04,7.18031136]
[1741367429387,43.34249512,142.12,142.06,43.34249512]
[1741367429598,43.34249512,142.09,142.03,43.34249512]
[1741367429795,43.34249512,142.08,142.0,159.4221]
[1741367430014,0.28432314,142.1,142.0,152.38]
[1741367430220,43.34249512,142.07,142.0,195.72249512]
[1741367430416,43.34249512,142.04,142.0,152.38]
[1741367430625,43.34249512,142.05,141.98,43.34249512]
[1741367431286,90.28,142.07,141.98,43.34249512]
[1741367431602,43.34249512,142.05,141.98,43.34249512]
[1741367431924,81.5,142.07,142.01,43.34249512]
[1741367432090,81.5,142.06,142.01,43.34249512]
[1741367432698,81.5,142.06,142.03,43.34249512]
[1741367432899,81.5,142.06,141.98,24.6513]
[1741367433200,81.5,142.06,142.05,43.34249512]
[1741367433519,81.5,142.11,142.05,43.34249512]
[1741367433830,81.5,142.13,142.09,43.34249512]
[1741367434029,81.5,142.13,142.1,43.34249512]
[1741367434324,81.5,142.13,142.09,43.34249512]
[1741367434523,81.5,142.13,142.08,43.34249512]
[1741367435031,81.5,142.13,142.09,43.34249512]
[1741367435204,81.5,142.13,142.05,24.6387]
[1741367435523,81.5,142.13,142.09,43.34249512]
[1741367436021,124.84249512,142.13,142.07,43.34249512]
[1741367436187,124.84249512,142.13,142.08,43.34249512]
[1741367436188,81.5,142.13,142.08,43.34249512]
[1741367436393,81.5,142.13,142.09,43.34249512]
[1741367437096,43.34249512,142.15,142.09,50.38019512]
[1741367437293,81.5,142.16,142.1,43.34249512]
[1741367437498,81.5,142.16,142.11,43.34249512]
[1741367437702,43.37249512,142.19,142.13,43.34249512]
[1741367438014,43.34249512,142.18,142.09,24.6321]
[1741367438201,124.84249512,142.18,142.11,43.34249512]
[1741367438798,81.5,142.18,142.12,43.34249512]
[1741367439115,81.5,142.18,142.13,43.34249512]
[1741367439301,0.03,142.19,142.16,43.34249512]
[1741367439503,0.03,142.19,142.17,43.34249512]
[1741367439817,0.03,142.19,142.18,43.34249512]
[1741367440415,0.03,142.19,142.17,43.34249512]
[1741367440606,0.03,142.19,142.18,43.34249512]
[1741367440919,0.03,142.19,142.16,43.34249512]
[1741367441301,0.03,142.19,142.18,43.34249512]
[1741367442896,0.03,142.19,142.18,50.37579512]
[1741367446796,0.03,142.19,142.17,7.0336]
[1741367447025,0.03,142.19,142.18,43.34249512]
[1741367448124,0.03,142.19,142.18,50.37579512]
[1741367448424,0.03,142.21,142.18,67.95909512]
[1741367448724,0.03,142.21,142.2,43.34249512]
[1741367449097,0.03,142.21,142.19,43.34249512]
[1741367449694,0.03,142.21,142.2,43.34249512]
[1741367449929,0.03,142.21,142.18,43.34249512]
[1741367450112,0.03,142.21,142.16,43.34249512]
[1741367450321,0.03,142.21,142.17,43.34249512]
[1741367450809,0.03,142.21,142.15,43.34249512]
[1741367451226,0.03,142.21,142.17,43.34249512]
[1741367451404,0.03,142.21,142.18,43.34249512]
[1741367451604,0.03,142.21,142.19,43.34249512]
[1741367451808,0.03,142.21,142.2,43.34249512]
[1741367452122,0.03,142.21,142.19,43.34249512]
[1741367453003,0.03,142.21,142.18,43.34249512]
[1741367453618,0.03,142.21,142.2,43.34249512]
[1741367454022,81.53,142.21,142.14,152.34]
[1741367454241,0.03,142.21,142.2,43.34249512]
[1741367454629,0.03,142.21,142.19,43.34249512]
[1741367454930,0.03,142.21,142.18,43.34249512]
[1741367455099,0.03,142.21,142.19,43.34249512]
[1741367455298,0.03,142.21,142.2,43.34249512]
[1741367456098,0.03,142.21,142.2,50.37479512]
[1741367456423,0.03,142.21,142.16,0.033]
[1741367456424,81.5,142.2,142.16,0.033]
[1741367456607,81.5,142.19,142.16,35.95510121]
[1741367456809,81.5,142.19,142.16,7.067]
[1741367457414,81.5,142.18,142.16,0.033]
[1741367457617,81.5,142.18,142.16,7.0671]
[1741367457822,81.5,142.18,142.16,0.033]
[1741367458026,81.5,142.17,142.16,0.033]
[1741367458235,28.88810121,142.17,142.16,0.033]
[1741367458542,52.11404672,142.17,142.16,0.033]
[1741367458706,8.76,142.17,142.16,0.033]
[1741367459123,52.11404672,142.17,142.16,0.033]
[1741367459305,71.04801872,142.17,142.16,0.033]
[1741367459511,6.452,142.18,142.16,0.033]
[1741367459712,81.5,142.17,142.16,0.033]
[1741367460244,81.5,142.17,142.16,50.42134672]
[1741367460526,81.5,142.17,142.16,0.033]
[1741367461616,43.35404672,142.18,142.16,0.033]
[1741367461806,43.35404672,142.17,142.16,0.033]
[1741367462209,69.32181872,142.17,142.16,0.033]
[1741367462745,50.38784672,142.17,142.16,0.033]
[1741367463045,43.35404672,142.19,142.16,0.033]
[1741367463244,62.00369558,142.18,142.16,0.033]
[1741367463444,43.35404672,142.17,142.16,0.033]
[1741367464114,69.32181872,142.17,142.16,0.033]
[1741367464510,112.67586544,142.17,142.16,0.033]
[1741367465130,69.32181872,142.17,142.16,0.033]
[1741367465918,7.0323,142.2,142.16,0.033]
[1741367466116,50.38634672,142.2,142.16,0.033]
[1741367466320,43.35404672,142.17,142.16,0.033]
[1741367466843,62.28801872,142.17,142.16,0.033]
[1741367467210,105.64206544,142.17,142.07,43.35404672]
[1741367467518,43.35404672,142.13,142.07,43.35404672]
[1741367467719,43.35404672,142.15,142.09,43.35404672]
[1741367467929,43.35404672,142.18,142.11,43.35404672]
[1741367468235,50.41694672,142.19,142.12,43.35404672]
[1741367468426,43.35404672,142.16,142.06,24.6373]
[1741367468628,7.0629,142.19,142.06,24.6373]
[1741367468629,43.35404672,142.17,142.1,43.35404672]
[1741367468813,43.38404672,142.19,142.13,43.35404672]
[1741367469017,0.03,142.19,142.14,43.35404672]
[1741367469265,50.41684672,142.19,142.13,43.35404672]
[1741367469540,43.35404672,142.17,142.11,43.35404672]
[1741367469843,43.35404672,142.15,142.09,43.35404672]
[1741367470139,18.933972,142.18,142.08,43.35404672]
[1741367470140,124.85404672,142.14,142.08,43.35404672]
[1741367470449,43.35404672,142.13,142.06,43.35404672]
[1741367470654,124.85404672,142.12,142.06,43.35404672]
[1741367471235,81.5,142.12,142.06,43.35404672]
[1741367471456,81.5,142.12,142.07,43.35404672]
[1741367471618,43.35404672,142.09,142.04,152.26]
[1741367471817,81.5,142.08,142.04,152.26]
[1741367472018,81.5,142.08,142.03,7.0406]
[1741367472215,124.85404672,142.07,142.02,0.033]
[1741367472415,43.35404672,142.03,142.02,0.033]
[1741367474145,105.3577423,142.03,142.02,0.033]
[1741367474442,7.0417,142.01,141.99,0.033]
[1741367474740,70.76369558,142.0,141.99,0.033]
[1741367474937,70.76369558,142.0,141.97,0.033]
[1741367475245,62.28801872,141.98,141.97,0.033]
[1741367475926,43.35404672,141.96,141.92,0.033]
[1741367476433,50.39824672,141.96,141.92,0.033]
[1741367476633,77.80789558,141.96,141.92,0.033]
[1741367476944,0.28432314,141.94,141.81,7.0516]
[1741367477146,43.35404672,141.89,141.82,43.35404672]
[1741367477351,8.76,141.89,141.85,43.35404672]
[1741367477640,81.5,141.9,141.85,43.35404672]
[1741367478058,43.35404672,141.89,141.83,43.35404672]
[1741367478215,14.49197766,141.92,141.82,43.35404672]
[1741367478216,124.85404672,141.88,141.82,43.35404672]
[1741367478559,81.5,141.88,141.83,43.35404672]
[1741367479064,81.5,141.88,141.84,43.35404672]
[1741367479232,81.5,141.87,141.8,31.6824]
[1741367479421,81.5,141.87,141.84,43.35404672]
[1741367479758,90.26,141.89,141.86,43.35404672]
[1741367480039,81.5,141.88,141.81,0.033]
[1741367480261,81.5,141.87,141.83,43.35404672]
[1741367480560,49.69434672,141.96,141.86,29.00038014]
[1741367480561,81.5,141.92,141.86,29.00038014]
[1741367480764,81.5,141.91,141.88,29.00038014]